fUSD/lending_fUSD_20250120
["ID","MTS","AMOUNT","RATE_DAILY","PERIOD"]
[349651442,1737357065808,-899.53,0.00021793,2]
[349651443,1737357065819,-1178.21,0.00021793,2]
[349651444,1737357065828,-538.92,0.00021793,2]
[349651445,1737357065840,-500.0,0.00021793,2]
[349651446,1737357065851,-500.0,0.00021793,2]
[349651447,1737357065862,-1794.15,0.00021793,2]
[349651448,1737357065878,-724.4,0.00021793,2]
[349651449,1737357065889,-2149.5,0.00021793,2]
[349651450,1737357065900,-3662.88,0.00021793,2]
[349651451,1737357065910,-3749.8,0.00021793,2]
[349651452,1737357065920,-1070.18,0.00021793,2]
[349651453,1737357065930,-500.0,0.00021793,2]
[349651454,1737357065940,-2622.23,0.00021793,2]
[349651455,1737357065950,-1124.23,0.00021793,2]
[349651456,1737357065960,-5414.11,0.00021793,2]
[349651457,1737357065970,-2203.52,0.00021793,2]
[349651458,1737357065980,-500.0,0.00021793,2]
[349651459,1737357065990,-737.23,0.00021793,2]
[349651460,1737357066000,-1289.34,0.00021793,2]
[349651461,1737357066011,-2270.22,0.00021793,2]
[349651462,1737357066022,-500.0,0.00021793,2]
[349651463,1737357066032,-500.0,0.00021794,2]
[349651464,1737357066042,-500.0,0.00021794,2]
[349651465,1737357066052,-500.0,0.00021794,2]
[349651466,1737357066063,-616.56,0.00021794,2]
[349651467,1737357066072,-621.89,0.00021794,2]
[349651468,1737357066083,-566.88,0.00021794,2]
[349651469,1737357066094,-500.0,0.00021794,2]
[349651470,1737357066105,-500.0,0.00021794,2]
[349651471,1737357066120,-580.30973532,0.00021794,2]
[349651472,1737357066133,-500.0,0.00021794,2]
[349651473,1737357066143,-500.0,0.00021794,2]
[349651474,1737357066155,-597.07,0.00021794,2]
[349651475,1737357066166,-826.91,0.00021794,2]
[349651476,1737357066176,-874.42,0.00021794,2]
[349651477,1737357066186,-500.0,0.00021794,2]
[349651478,1737357066197,-500.0,0.00021794,2]
[349651479,1737357066206,-500.0,0.00021794,2]
[349651480,1737357066216,-500.0,0.00021794,2]
[349651481,1737357066226,-500.0,0.00021794,2]
[349651482,1737357066235,-501.69,0.00021794,2]
[349651483,1737357066245,-588.34,0.00021794,2]
[349651484,1737357066255,-509.56376696,0.00021794,2]
[349651485,1737357066271,-500.0,0.00021794,2]
[349651486,1737357066284,-560.99,0.00021794,2]
[349651487,1737357066295,-500.0,0.00021794,2]
[349651488,1737357066307,-500.0,0.00021794,2]
[349651489,1737357066319,-500.0,0.00021794,2]
[349651490,1737357066330,-425.82599224,0.00021794,2]
[349651491,1737357066340,-1209.74,0.00021794,2]
[349651492,1737357066350,-500.0,0.00021794,2]
[349651493,1737357066361,-500.0,0.00021794,2]
[349651494,1737357066377,-996.35,0.00021794,2]
[349651495,1737357066387,-637.57,0.00021794,2]
[349651496,1737357066397,-500.0,0.00021794,2]
[349651497,1737357066407,-905.83,0.00021794,2]
[349651498,1737357066418,-1077.47,0.00021794,2]
[349651499,1737357066429,-500.0,0.00021794,2]
[349651500,1737357066438,-554.39,0.00021794,2]
[349651501,1737357066449,-500.0,0.00021794,2]
[349651502,1737357066459,-500.0,0.00021794,2]
[349651503,1737357066470,-906.22,0.00021794,2]
[349651504,1737357066480,-500.0,0.00021794,2]
[349651505,1737357066491,-500.0,0.00021794,2]
[349651506,1737357066501,-616.92,0.00021794,2]
[349651507,1737357066511,-1216.96,0.00021794,2]
[349651508,1737357066522,-500.0,0.00021794,2]
[349651509,1737357066532,-1234.53,0.00021794,2]
[349651510,1737357066542,-830.7,0.00021794,2]
[349651511,1737357066552,-500.0,0.00021794,2]
[349651512,1737357066566,-500.0,0.00021794,2]
[349651513,1737357066576,-500.0,0.00021794,2]
[349651514,1737357066587,-500.0,0.00021794,2]
[349651515,1737357066597,-1109.16,0.00021794,2]
[349651516,1737357066608,-500.0,0.00021794,2]
[349651517,1737357066623,-1671.15,0.00021794,2]
[349651518,1737357066633,-1002.93,0.00021794,2]
[349651519,1737357066645,-500.0,0.00021794,2]
[349651520,1737357066656,-500.0,0.00021794,2]
[349651521,1737357066665,-500.0,0.00021794,2]
[349651522,1737357066681,-1060.61,0.00021794,2]
[349651523,1737357066693,-530.38,0.00021794,2]
[349651524,1737357066703,-1501.55,0.00021794,2]
[349651525,1737357066711,-1094.93,0.00021794,2]
[349651526,1737357066721,-500.0,0.00021794,2]
[349651527,1737357066734,-694.63,0.00021794,2]
[349651528,1737357066744,-608.95,0.00021794,2]
[349651529,1737357066754,-576.4134236,0.00021794,2]
[349651530,1737357066764,-566.91021218,0.00021794,2]
[349651531,1737357066774,-573.88,0.00021794,2]
[349651532,1737357066784,-1791.48,0.00021794,2]
[349651533,1737357066793,-764.66,0.00021794,2]
[349651534,1737357066803,-468.13774458,0.00021794,2]
[349651535,1737357066812,-1222.25,0.00021794,2]
[349651536,1737357066822,-2337.43,0.00021794,2]
[349651537,1737357066831,-806.28,0.00021794,2]
[349651538,1737357066841,-1684.46,0.00021794,2]
[349651539,1737357066850,-3376.09,0.00021794,2]
[349651540,1737357066860,-741.22,0.00021794,2]
[349651541,1737357066873,-3636.06,0.00021794,2]
[349651542,1737357066883,-2562.36,0.00021794,2]
[349651543,1737357066892,-6332.1,0.00021794,2]
[349651544,1737357066903,-500.0,0.00021794,2]
[349651545,1737357066912,-1118.19,0.00021794,2]
[349651546,1737357066922,-691.41,0.00021794,2]
[349651547,1737357066934,-500.0,0.00021794,2]
[349651548,1737357066944,-5034.92,0.00021794,2]
[349651549,1737357066957,-669.71,0.00021794,2]
[349651550,1737357066966,-753.19,0.00021794,2]
[349651551,1737357066977,-500.0,0.00021794,2]
[349651552,1737357066990,-500.0,0.00021794,2]
[349651553,1737357066999,-500.0,0.00021794,2]
[349651554,1737357067011,-1285.62,0.00021794,2]
[349651555,1737357067020,-783.34,0.00021794,2]
[349651556,1737357067031,-6472.48,0.00021794,2]
[349651557,1737357067041,-2685.84,0.00021794,2]
[349651558,1737357067051,-836.18,0.00021794,2]
[349651559,1737357067061,-500.0,0.00021794,2]
[349651560,1737357067071,-2128.21,0.00021794,2]
[349651561,1737357067080,-6460.5,0.00021794,2]
[349651562,1737357067090,-618.51,0.00021794,2]
[349651563,1737357067099,-218.65,0.00021794,2]
[349651564,1737357067109,-500.0,0.00021794,2]
[349651565,1737357067123,-1585.57,0.00021794,2]
[349651566,1737357067132,-2760.19,0.00021794,2]
[349651567,1737357067142,-500.0,0.00021794,2]
[349651568,1737357067151,-500.0,0.00021794,2]
[349651569,1737357067160,-984.05,0.00021794,2]
[349651570,1737357067170,-1906.35,0.00021794,2]
[349651571,1737357067179,-500.0,0.00021794,2]
[349651572,1737357067188,-500.0,0.00021794,2]
[349651573,1737357067198,-500.0,0.00021794,2]
[349651574,1737357067207,-1499.5,0.00021794,2]
[349651575,1737357067217,-500.0,0.00021794,2]
[349651576,1737357067227,-2628.34,0.00021794,2]
[349651577,1737357067237,-500.0,0.00021794,2]
[349651578,1737357067246,-520.39,0.00021794,2]
[349651579,1737357067256,-1299.48,0.00021794,2]
[349651580,1737357067265,-953.14,0.00021794,2]
[349651581,1737357067275,-500.0,0.00021794,2]
[349651582,1737357067284,-500.0,0.00021794,2]
[349651583,1737357067295,-812.085689,0.00021794,2]
[349651584,1737357067304,-500.0,0.00021794,2]
[349651585,1737357067314,-1959.47,0.00021794,2]
[349651586,1737357067324,-812.085689,0.00021794,2]
[349651587,1737357067333,-638.46,0.00021794,2]
[349651588,1737357067343,-1350.25,0.00021794,2]
[349651589,1737357067353,-500.0,0.00021794,2]
[349651590,1737357067363,-500.0,0.00021794,2]
[349651591,1737357067379,-715.54,0.00021794,2]
[349651592,1737357067389,-751.72,0.00021794,2]
[349651593,1737357067399,-1867.69,0.00021794,2]
[349651594,1737357067409,-500.0,0.00021794,2]
[349651595,1737357067419,-500.0,0.00021794,2]
[349651596,1737357067429,-500.0,0.00021794,2]
[349651597,1737357067438,-3983.13,0.00021794,2]
[349651598,1737357067448,-500.0,0.00021794,2]
[349651599,1737357067458,-500.0,0.00021794,2]
[349651600,1737357067467,-882.09,0.00021794,2]
[349651601,1737357067476,-500.0,0.00021794,2]
[349651602,1737357067486,-977.81,0.00021794,2]
[349651603,1737357067495,-1799.96,0.00021794,2]
[349651604,1737357067504,-500.0,0.00021794,2]
[349651605,1737357067513,-500.0,0.00021794,2]
[349651606,1737357067523,-500.0,0.00021794,2]
[349651607,1737357067532,-988.73,0.00021794,2]
[349651608,1737357067541,-500.0,0.00021794,2]
[349651609,1737357067551,-500.0,0.00021794,2]
[349651610,1737357067560,-679.55,0.00021794,2]
[349651611,1737357067569,-775.38,0.00021794,2]
[349651612,1737357067579,-882.11,0.00021794,2]
[349651613,1737357067589,-1067.99,0.00021794,2]
[349651614,1737357067598,-500.0,0.00021794,2]
[349651615,1737357067608,-1944.06,0.00021794,2]
[349651616,1737357067622,-500.0,0.00021794,2]
[349651617,1737357067632,-500.0,0.00021795,2]
[349651618,1737357067647,-571.87,0.00021795,2]
[349651619,1737357067656,-595.96,0.00021795,2]
[349651620,1737357067666,-500.0,0.00021795,2]
[349651621,1737357067674,-500.0,0.00021795,2]
[349651622,1737357067687,-500.0,0.00021795,2]
[349651623,1737357067697,-500.0,0.00021795,2]
[349651624,1737357067706,-151.0,0.00021795,2]
[349651625,1737357067716,-500.0,0.00021795,2]
[349651626,1737357067726,-500.0,0.00021795,2]
[349651627,1737357067736,-618.17835184,0.00021795,2]
[349651628,1737357067745,-600.27,0.00021795,2]
[349651629,1737357067755,-500.0,0.00021795,2]
[349651630,1737357067764,-500.0,0.00021795,2]
[349651631,1737357067774,-567.42,0.00021795,2]
[349651632,1737357067783,-500.0,0.00021795,2]
[349651633,1737357067793,-500.0,0.00021795,2]
[349651634,1737357067804,-500.0,0.00021795,2]
[349651635,1737357067813,-500.0,0.00021795,2]
[349651636,1737357067822,-500.0,0.00021795,2]
[349651637,1737357067832,-197.5430532,0.00021795,2]
[349651638,1737357067842,-500.0,0.00021795,2]
[349651639,1737357067852,-500.0,0.00021795,2]
[349651640,1737357067862,-258.67602071,0.00021795,2]
[349651641,1737357067886,-500.0,0.00021795,2]
[349651642,1737357067899,-1241.57,0.00021795,2]
[349651643,1737357067908,-819.46,0.00021795,2]
[349651644,1737357067918,-553.61,0.00021795,2]
[349651645,1737357067928,-500.0,0.00021795,2]
[349651646,1737357067938,-555.22,0.00021795,2]
[349651647,1737357067949,-1069.58,0.00021795,2]
[349651648,1737357067959,-913.82,0.00021795,2]
[349651649,1737357067968,-610.64,0.00021795,2]
[349651650,1737357067978,-728.27,0.00021795,2]
[349651651,1737357067988,-500.0,0.00021795,2]
[349651652,1737357067998,-1109.51,0.00021795,2]
[349651653,1737357068007,-504.09,0.00021795,2]
[349651654,1737357068017,-500.0,0.00021795,2]
[349651655,1737357068028,-500.0,0.00021795,2]
[349651656,1737357068037,-500.0,0.00021795,2]
[349651657,1737357068047,-500.0,0.00021795,2]
[349651658,1737357068057,-353.94,0.00021795,2]
[349651659,1737357068067,-500.0,0.00021795,2]
[349651660,1737357068076,-500.0,0.00021795,2]
[349651661,1737357068086,-500.0,0.00021795,2]
[349651662,1737357068095,-500.0,0.00021795,2]
[349651663,1737357068105,-500.0,0.00021795,2]
[349651664,1737357068115,-500.0,0.00021795,2]
[349651665,1737357068289,-500.0,0.00021795,2]
[349651666,1737357068299,-1382.29,0.00021795,2]
[349651667,1737357068308,-1723.55,0.00021795,2]
[349651668,1737357068318,-1814.87,0.00021795,2]
[349651669,1737357068327,-500.0,0.00021795,2]
[349651670,1737357068337,-500.0,0.00021795,2]
[349651671,1737357068347,-844.53,0.00021795,2]
[349651672,1737357068356,-872.38,0.00021795,2]
[349651673,1737357068365,-500.0,0.00021795,2]
[349651674,1737357068380,-618.61,0.00021795,2]
[349651675,1737357068389,-500.0,0.00021795,2]
[349651676,1737357068399,-1230.29,0.00021795,2]
[349651677,1737357068409,-943.42,0.00021795,2]
[349651678,1737357068418,-1172.08,0.00021795,2]
[349651679,1737357068428,-1416.41,0.00021795,2]
[349651680,1737357068438,-500.0,0.00021795,2]
[349651681,1737357068447,-755.21,0.00021795,2]
[349651682,1737357068457,-151.0,0.00021795,2]
[349651683,1737357068466,-500.0,0.00021795,2]
[349651684,1737357068475,-671.68,0.00021795,2]
[349651685,1737357068485,-500.0,0.00021795,2]
[349651686,1737357068495,-600.41,0.00021795,2]
[349651687,1737357068504,-956.34,0.00021795,2]
[349651688,1737357068513,-751.01,0.00021795,2]
[349651689,1737357068523,-500.0,0.00021795,2]
[349651690,1737357068532,-560.7,0.00021795,2]
[349651691,1737357068541,-500.0,0.00021795,2]
[349651692,1737357068551,-804.91,0.00021795,2]
[349651693,1737357068560,-500.0,0.00021795,2]
[349651694,1737357068570,-500.0,0.00021795,2]
[349651695,1737357068579,-500.0,0.00021795,2]
[349651696,1737357068589,-855.88,0.00021795,2]
[349651697,1737357068598,-1440.4,0.00021795,2]
[349651698,1737357068608,-500.0,0.00021795,2]
[349651699,1737357068617,-507.73,0.00021795,2]
[349651700,1737357068632,-598.16,0.00021795,2]
[349651701,1737357068645,-572.44,0.00021795,2]
[349651702,1737357068654,-891.28,0.00021796,2]
[349651703,1737357068665,-500.0,0.00021796,2]
[349651704,1737357068675,-987.27,0.00021796,2]
[349651705,1737357068690,-687.51,0.00021796,2]
[349651706,1737357068700,-1487.68,0.00021796,2]
[349651707,1737357068710,-945.97,0.00021796,2]
[349651708,1737357068719,-737.44,0.00021796,2]
[349651709,1737357068728,-500.0,0.00021796,2]
[349651710,1737357068738,-914.42,0.00021796,2]
[349651711,1737357068748,-500.0,0.00021796,2]
[349651712,1737357068757,-500.0,0.00021796,2]
[349651713,1737357068767,-500.0,0.00021796,2]
[349651714,1737357068776,-10782.68540626,0.000218,2]
[349651715,1737357068786,-151.0,0.000218,2]
[349651716,1737357068795,-195.43654231,0.00021872,2]
[349651717,1737357068805,-431.93,0.00021874,2]
[349651718,1737357068815,-500.0,0.0002189,2]
[349651719,1737357068825,-60183.12726689,0.000219,2]
[349651720,1737357068836,-200.0,0.000219,2]
[349651721,1737357068847,-1589.33542481,0.000219,2]
[349651722,1737357068858,-615.53071558,0.000219,2]
[349651723,1737357068870,-812.085689,0.000219,2]
[349651724,1737357068881,-812.085689,0.000219,2]
[349651725,1737357068891,-162.06759521,0.000219,2]
[349651726,1737357068901,-1404.79969,0.000219,2]
[349651727,1737357068911,-510.42089219,0.000219,2]
[349651728,1737357068921,-154.7715388,0.000219,2]
[349651729,1737357068931,-208.51040167,0.000219,3]
[349651730,1737357068941,-317.81212938,0.000219,2]
[349651731,1737357068951,-500.0,0.00021917,3]
[349651732,1737357068961,-500.0,0.00021917,3]
[349651733,1737357068971,-500.0,0.00021917,3]
[349651734,1737357068981,-500.0,0.00021917,3]
[349651735,1737357068991,-1083.40915993,0.00021917,14]
[349651736,1737357069002,-500.0,0.00021917,2]
[349651737,1737357069012,-500.0,0.00021917,2]
[349651738,1737357069022,-500.0,0.00021917,2]
[349651739,1737357069031,-500.0,0.00021917,2]
[349651740,1737357069041,-4000.0,0.00021918,2]
[349651741,1737357069051,-150.0,0.00021918,2]
[349651742,1737357069060,-2000.0,0.00021918,30]
[349651743,1737357069070,-398.8967656,0.0002192,2]
[349651744,1737357069079,-398.8967656,0.0002192,2]
[349651745,1737357069089,-398.8967656,0.0002192,2]
[349651746,1737357069099,-398.8967656,0.0002192,2]
[349651747,1737357069109,-398.8967656,0.0002192,2]
[349651748,1737357069123,-398.8967656,0.0002192,2]
[349651749,1737357069133,-398.8967656,0.0002192,2]
[349651750,1737357069143,-398.8967656,0.0002192,2]
[349651751,1737357069152,-398.8967656,0.0002192,2]
[349651752,1737357069162,-398.8967656,0.0002192,2]
[349651753,1737357069173,-398.8967656,0.0002192,2]
[349651754,1737357069183,-398.8967656,0.0002192,2]
[349651755,1737357069193,-398.8967656,0.0002192,2]
[349651756,1737357069203,-398.8967656,0.0002192,2]
[349651757,1737357069213,-398.8967656,0.0002192,2]
[349651758,1737357069223,-398.8967656,0.0002192,2]
[349651759,1737357069232,-398.8967656,0.0002192,2]
[349651760,1737357069242,-398.8967656,0.0002192,2]
[349651761,1737357069252,-398.8967656,0.0002192,2]
[349651762,1737357069262,-398.89,0.0002192,2]
[349651763,1737357069271,-930.75911973,0.0002192,2]
[349651764,1737357069281,-930.75911973,0.0002192,2]
[349651765,1737357069290,-930.75911973,0.0002192,2]
[349651766,1737357069299,-930.75911973,0.0002192,2]
[349651767,1737357069309,-930.75911973,0.0002192,2]
[349651768,1737357069318,-930.75911973,0.0002192,2]
[349651769,1737357069328,-930.75911973,0.0002192,2]
[349651770,1737357069337,-930.75911973,0.0002192,2]
[349651771,1737357069347,-930.75911973,0.0002192,2]
[349651772,1737357069356,-930.75911973,0.0002192,2]
[349651773,1737357069367,-930.75911973,0.0002192,2]
[349651774,1737357069380,-930.75911973,0.0002192,2]
[349651775,1737357069390,-930.75911973,0.0002192,2]
[349651776,1737357069399,-930.75911973,0.0002192,2]
[349651777,1737357069408,-930.75911973,0.0002192,2]
[349651778,1737357069418,-930.75911973,0.0002192,2]
[349651779,1737357069427,-930.75911973,0.0002192,2]
[349651780,1737357069437,-930.75911973,0.0002192,2]
[349651781,1737357069446,-930.75911973,0.0002192,2]
[349651782,1737357069456,-930.75,0.0002192,2]
[349651783,1737357069465,-1059.90963837,0.0002192,2]
[349651784,1737357069475,-1059.90963837,0.0002192,2]
[349651785,1737357069484,-1059.90963837,0.0002192,2]
[349651786,1737357069494,-1059.90963837,0.0002192,2]
[349651787,1737357069503,-1059.90963837,0.0002192,2]
[349651788,1737357069512,-1059.90963837,0.0002192,2]
[349651789,1737357069521,-1059.90963837,0.0002192,2]
[349651790,1737357069535,-1059.90963837,0.0002192,2]
[349651791,1737357069544,-1059.90963837,0.0002192,2]
[349651792,1737357069554,-1059.90963837,0.0002192,2]
[349651793,1737357069564,-1059.90963837,0.0002192,2]
[349651794,1737357069574,-1059.90963837,0.0002192,2]
[349651795,1737357069583,-1059.90963837,0.0002192,2]
[349651796,1737357069592,-1059.90963837,0.0002192,2]
[349651797,1737357069601,-1059.90963837,0.0002192,2]
[349651798,1737357069611,-1059.90963837,0.0002192,2]
[349651799,1737357069620,-1059.90963837,0.0002192,2]
[349651800,1737357069631,-1059.90963837,0.0002192,2]
[349651801,1737357069645,-1059.90963837,0.0002192,2]
[349651802,1737357069654,-1059.9,0.0002192,2]
[349651803,1737357069663,-2473.12248953,0.0002192,2]
[349651804,1737357069672,-2473.12248953,0.0002192,2]
[349651805,1737357069683,-2473.12248953,0.0002192,2]
[349651806,1737357069693,-2473.12248953,0.0002192,2]
[349651807,1737357069702,-2473.12248953,0.0002192,2]
[349651808,1737357069712,-2473.12248953,0.0002192,2]
[349651809,1737357069721,-2473.12248953,0.0002192,2]
[349651810,1737357069732,-2473.12248953,0.0002192,2]
[349651811,1737357069742,-2473.12248953,0.0002192,2]
[349651812,1737357069752,-2473.12248953,0.0002192,2]
[349651813,1737357069761,-2473.12248953,0.0002192,2]
[349651814,1737357069771,-2473.12248953,0.0002192,2]
[349651815,1737357069780,-2473.12248953,0.0002192,2]
[349651816,1737357069790,-2473.12248953,0.0002192,2]
[349651817,1737357069800,-2473.12248953,0.0002192,2]
[349651818,1737357069809,-2473.12248953,0.0002192,2]
[349651819,1737357069819,-2473.12248953,0.0002192,2]
[349651820,1737357069829,-2473.12248953,0.0002192,2]
[349651821,1737357069839,-2473.12248953,0.0002192,2]
[349651822,1737357069849,-2473.12,0.0002192,2]
[349651823,1737357069859,-537.38973346,0.0002192,2]
[349651824,1737357069869,-537.38973346,0.0002192,2]
[349651825,1737357069884,-537.38973346,0.0002192,2]
[349651826,1737357069894,-537.38973346,0.0002192,2]
[349651827,1737357069904,-537.38973346,0.0002192,2]
[349651828,1737357069913,-537.38973346,0.0002192,2]
[349651829,1737357069923,-537.38973346,0.0002192,2]
[349651830,1737357069933,-537.38973346,0.0002192,2]
[349651831,1737357069943,-537.38973346,0.0002192,2]
[349651832,1737357069952,-537.38973346,0.0002192,2]
[349651833,1737357069962,-537.38973346,0.0002192,2]
[349651834,1737357069972,-537.38973346,0.0002192,2]
[349651835,1737357069981,-537.38973346,0.0002192,2]
[349651836,1737357069992,-537.38973346,0.0002192,2]
[349651837,1737357070001,-537.38973346,0.0002192,2]
[349651838,1737357070011,-537.38973346,0.0002192,2]
[349651839,1737357070020,-537.38973346,0.0002192,2]
[349651840,1737357070030,-537.38973346,0.0002192,2]
[349651841,1737357070039,-537.38973346,0.0002192,2]
[349651842,1737357070049,-537.38,0.0002192,2]
[349651843,1737357070058,-1253.90937807,0.0002192,2]
[349651844,1737357070068,-1253.90937807,0.0002192,2]
[349651845,1737357070078,-1253.90937807,0.0002192,2]
[349651846,1737357070087,-1253.90937807,0.0002192,2]
[349651847,1737357070096,-1253.90937807,0.0002192,2]
[349651848,1737357070107,-1253.90937807,0.0002192,2]
[349651849,1737357070116,-1253.90937807,0.0002192,2]
[349651850,1737357070129,-1253.90937807,0.0002192,2]
[349651851,1737357070139,-1253.90937807,0.0002192,2]
[349651852,1737357070149,-1253.90937807,0.0002192,2]
[349651853,1737357070159,-1253.90937807,0.0002192,2]
[349651854,1737357070168,-1253.90937807,0.0002192,2]
[349651855,1737357070178,-1253.90937807,0.0002192,2]
[349651856,1737357070188,-1253.90937807,0.0002192,2]
[349651857,1737357070198,-1253.90937807,0.0002192,2]
[349651858,1737357070207,-1253.90937807,0.0002192,2]
[349651859,1737357070216,-1253.90937807,0.0002192,2]
[349651860,1737357070230,-1253.90937807,0.0002192,2]
[349651861,1737357070240,-1253.90937807,0.0002192,2]
[349651862,1737357070250,-1253.9,0.0002192,2]
[349651863,1737357070260,-151.0,0.0002192,7]
[349651864,1737357070270,-150.0,0.00021973,4]
[349651865,1737357070280,-150.0,0.00021973,4]
[349651866,1737357070290,-150.0,0.00021973,4]
[349651867,1737357070299,-150.42856401,0.00021973,4]
[349651868,1737357070309,-150.40627047,0.00021973,4]
[349651869,1737357070318,-151.71501576,0.00021973,4]
[349651870,1737357070328,-500.0,0.00021973,2]
[349651871,1737357070338,-525.84331673,0.00021973,2]
[349651872,1737357070348,-253.5,0.00021979,15]
[349651873,1737357070359,-54192.38840451,0.0002198,2]
[349651874,1737357070369,-812.085689,0.0002198,7]
[349651875,1737357070384,-812.085689,0.0002198,7]
[349651876,1737357070394,-396.62648436,0.00021985,2]
[349651877,1737357070404,-1093.3862389,0.00021985,2]
[349651878,1737357070414,-912.4264765,0.00021985,2]
[349651879,1737357070424,-731.4667141,0.00021985,2]
[349651880,1737357070435,-550.5069516,0.00021985,2]
[349651881,1737357070445,-369.5471892,0.00021985,2]
[349651882,1737357070457,-1670.978812,0.0002199,30]
[349651883,1737357070467,-5050.0,0.0002199,35]
[349651884,1737357070477,-331.54836575,0.0002199,2]
[349651885,1737357070487,-854.240533,0.0002199,30]
[349651886,1737357070497,-42540.62936626,0.00021997,2]
[349651887,1737357070507,-812.085689,0.00021997,7]
[349651888,1737357070517,-812.085689,0.00021997,7]
[349651889,1737357070527,-2000.0,0.00021999,2]
[349651890,1737357070536,-2000.0,0.00021999,2]
[349651891,1737357070546,-2000.0,0.00021999,2]
[349651892,1737357070556,-20000.0,0.00021999,3]
[349651893,1737357070566,-2329.8638,0.00021999,2]
[349651894,1737357070575,-2000.0,0.00021999,2]
[349651895,1737357070585,-2000.0,0.00021999,2]
[349651896,1737357070595,-2000.0,0.00021999,2]
[349651897,1737357070604,-2000.0,0.00021999,2]
[349651898,1737357070613,-2000.0,0.00021999,2]
[349651899,1737357070626,-2000.0,0.00021999,2]
[349651900,1737357070636,-1000.0,0.00021999,2]
[349651901,1737357070646,-78414.29,0.00021999,2]
[349651902,1737357070656,-500.0,0.00021999,2]
[349651903,1737357070667,-990.89011356,0.00022,2]
[349651904,1737357070678,-3641.0,0.00022,15]
[349651905,1737357070688,-5000.0,0.00022,15]
[349651906,1737357070698,-5000.0,0.00022,15]
[349651907,1737357070708,-127240.83008859,0.00022,2]
[349651908,1737357071071,-1339.64220743,0.00022,2]
[349651909,1737357071083,-1371.12,0.00022,2]
[349651910,1737357071094,-2085.83180324,0.00022,2]
[349651911,1737357071105,-3050289.08645908,0.00022,2]
[349651912,1737357071125,-500.0,0.00021795,2]
[349651913,1737357071135,-560.5832963,0.00022,2]
[349651914,1737357071146,-1595.58701,0.00022,2]
[349651915,1737357071158,-640.32,0.00022,2]
[349651916,1737357071169,-1954.24678302,0.00022,2]
[349651917,1737357071181,-719.23768022,0.00022,2]
[349651918,1737357071193,-681.52322558,0.00022,2]
[349651919,1737357071281,-9296.3361202,0.00022,2]
[349651920,1737357071292,-5066.6632978,0.00022,2]
[349651921,1737357071320,-1040.59007396,0.00022,2]
[349651922,1737357071332,-3486.4432096,0.00022,2]
[349651923,1737357071343,-8050.11899139,0.00022,2]
[349651924,1737357071355,-1993.571184,0.00022,2]
[349651925,1737357071366,-786.995015,0.00022,2]
[349651926,1737357083786,500.0,0.00018164,2]
[349651928,1737357103399,500.0,0.00018164,2]
[349651929,1737357107321,167.82,0.00016618,2]
[349651930,1737357190346,500.0,0.000225,120]
[349651931,1737357195543,535.440159,0.000225,120]
[349651932,1737357203738,200.0,0.000225,120]
[349651935,1737357308354,58.18339809,0.0002,30]
[349651936,1737357354478,38318.81660191,0.00018,30]
[349651938,1737357448330,157.63,0.00010137,2]
[349651946,1737357793216,500.0,0.00022583,120]
[349651947,1737357804838,200.0,0.00022583,120]
[349651949,1737357908777,3842.37,0.00012,2]
[349651951,1737357908804,145568.00103244,0.00012,2]
[349651952,1737357942142,-550.0,0.00015,2]
[349651953,1737357942164,-513.95194148,0.000154,2]
[349651954,1737357942187,-429.73509263,0.00018063,2]